Cogmind - Beta 15 @@@ ROGUE MODE // 2025.08.26 @ 09:47:20 Player: Lich Result: Destroyed by Y-45 Defender with Beam Rifle Performance ------------- Evolutions (1) 500 Regions Visited (2) 400 Robots Destroyed (58) 290 Value Destroyed (907) 907 Prototype IDs (2) 40 Alien Tech Used (0) 0 Bonus (0) 0 TOTAL SCORE: 2137 Bonus ------- None Cogmind --------- Core Integrity 0/400 Matter 327/400 Energy 150/150 System Corruption 0% Temperature Cool (51) Movement Walking (120) Location -9/Materials Parts ------- > --- POWER (2) -------- Light Ion Engine Light Ion Engine > --- PROPULSION (2) --- Aluminum Leg Aluminum Leg > --- UTILITY (3) ------ Medium Matter Pod Weight Redist. System Light Armor Plating > --- WEAPON (2) ------- Beam Rifle Improved Assault Rifle > --- INVENTORY (5) ---- Ion Engine Improved Ion Engine Cooled Ion Engine Heat Sink Huge Storage Unit Peak State ------------ > --- POWER ------------ Cooled Ion Engine Light Nuclear Core > --- PROPULSION ------- Hover Unit Hover Unit > --- UTILITY ---------- Improved Heat Sink Huge Storage Unit Medium Matter Pod > --- WEAPON ----------- Improved Assault Rifle Improved Assault Rifle > --- INVENTORY -------- Light Ion Engine Light Ion Engine Light Ion Engine Small Storage Unit Medium Matter Pod Small Laser Light Assault Rifle [Rating: 19] Favorites ----------- Power Cooled Ion Engine Engine Cooled Ion Engine Power Core Light Nuclear Core Propulsion Aluminum Leg Treads Light Treads Leg Aluminum Leg Hover Unit Hover Unit Flight Unit Flight Unit Utility Medium Matter Pod Device Improved Heat Sink Storage Medium Matter Pod Hackware Hacking Suite Protection Light Armor Plating Weapon Improved Assault Rifle Energy Gun Small Laser Ballistic Gun Improved Assault Rifle Launcher Grenade Launcher Build | -11 -10 -9 ------- Run | Yrd Mat Mat Slots Evolved 2 | . . 2 Power 1 | . . 1 Propulsion . | . . . Utility 1 | . . 1 Weapon . | . . . Parts Attached 39 | 6 3 30 Power 11 | 1 . 10 Engine 10 | 1 . 9 Core 1 | . . 1 Reactor . | . . . Propulsion 11 | 2 . 9 Treads 2 | . . 2 Leg 5 | 2 . 3 Wheel . | . . . Hover 3 | . . 3 Flight 1 | . . 1 Utility 10 | 1 3 6 Device 3 | 1 . 2 Storage 5 | . 2 3 Processor . | . . . Hackware 1 | . 1 . Protection 1 | . . 1 Artifact . | . . . Weapon 7 | 2 . 5 Energy Gun 3 | 1 . 2 Energy Cannon . | . . . Ballistic Gun 3 | 1 . 2 Ballistic Cannon . | . . . Launcher 1 | . . 1 Special Weapon . | . . . Impact Weapon . | . . . Slashing Weapon . | . . . Piercing Weapon . | . . . Special Melee Weapon . | . . . Unidentified Prototypes 2 | . . 2 Parts Lost 14 | . 1 13 Power 3 | . . 3 Propulsion 5 | . . 5 Utility 3 | . . 3 Weapon 3 | . 1 2 Highest Loss Streak 3 | . 1 3 To Critical Strikes . | . . . Average Backups 5 | . 5 6 Power 2 | . 1 2 Propulsion . | . 1 . Utility 1 | . . 2 Weapon 1 | . 1 1 Tool/Special . | . . . Unused Backups 4 | . 1 3 Power . | . . . Propulsion 1 | . 1 . Utility 3 | . . 3 Weapon . | . . . Tool/Special . | . . . Average Slot Usage (%) 81 | . 91 80 Engine 13 | . 14 13 Core 4 | . . 5 Treads 2 | . . 2 Leg 7 | . 28 5 Hover 4 | . . 4 Flight 1 | . . 1 Device 4 | . 4 4 Storage 22 | . 17 22 Energy Gun 4 | . 7 4 Ballistic Gun 12 | . 14 12 Peak Build Rating 19 | 6 9 19 Average Rating 11 | 4 7 12 On Entrance 4 | . 6 6 Naked Turns . | . . . Heaviest Build 104 | 7 88 104 Greatest Support 46 | 20 20 46 Greatest Overweight (x) 32 | . 4 32 Average Overweight (x) 5 | . 1 9 Largest Inventory Capacity 25 | 5 25 25 Average Capacity 23 | 5 16 24 Most Carried 13 | 3 8 13 Average Carried 5 | . 5 6 Final Capacity 25 | 5 25 5 Final Carried 8 | 2 8 5 Class Distribution -------------------- 70% | Mutant 29% | Scavenger-Mutant Dominant Class ---------------- Mutant | -10/Materials Mutant | -9/Materials Resources | -11 -10 -9 ----------- Run | Yrd Mat Mat Matter Collected 1258 | 263 66 929 Remotely . | . . . Salvage Created 1838 | 52 68 1718 Parts 116 | 3 11 102 Haulers Intercepted 4 | . . 4 Recyclers Shooed 6 | . . 6 Parts Field Recycled . | . . . Retrieved Matter . | . . . Parts Self-Destructed . | . . . Prevented . | . . . Kills | -11 -10 -9 ------- Run | Yrd Mat Mat Combat Hostiles Destroyed 25 | 1 2 22 Guns 18 | . 2 16 AOE 7 | 1 . 6 Classes Destroyed 10 | 2 2 6 Worker 7 | 1 1 5 Builder 6 | . . 6 Tunneler 1 | . . 1 Hauler 4 | . . 4 Recycler 10 | . . 10 Operator 1 | . 1 . Watcher 4 | . . 4 Swarmer 8 | . 2 6 Grunt 16 | 1 . 15 Sentry 1 | . . 1 Best Kill Streak 8 | 1 2 8 Combat Bots Only 3 | 1 2 3 Max Kills in Single Turn 4 | 1 1 4 Gunslinging . | . . . Exploded 2 | 1 . 2 Melee . | . . . Uniques/NPCs Destroyed . | . . . Combat | -11 -10 -9 -------- Run | Yrd Mat Mat Hostile Shots Fired 213 | 1 24 188 Missed 60 | . 8 52 Hits 153 | 1 16 136 Projectile 153 | 1 16 136 Critical Strikes 2 | . . 2 Damage Taken 1830 | 11 119 1700 Core 424 | . 19 405 Absorbed by Shields . | . . . Core Remaining (%) 96 | 100 92 . Volleys Fired 173 | 3 11 159 Largest 2 | 2 2 2 Hottest 79 | 60 60 79 Shots Fired 241 | 6 17 218 Gun 232 | 6 17 209 Cannon . | . . . Launcher 9 | . . 9 Special . | . . . Kinetic 181 | 3 11 167 Thermal 42 | . . 42 Explosive 9 | . . 9 Electromagnetic 9 | 3 6 . Robot Hit Streak 12 | 4 6 12 Robot Miss Streak 4 | 1 2 4 Penetration Max . | . . . Secondary Targets 3 | . 1 2 Max Gunslinging Chain 1 | . 1 1 Shots Hit Robots 133 | 4 6 123 Core Hits 90 | 3 6 81 Critical Kills . | . . . Critical Parts Destroyed . | . . . Critical Strikes 2 | . . 2 Burn 2 | . . 2 Melee Attacks . | . . . Impact . | . . . Slashing . | . . . Piercing . | . . . Sneak Attacks . | . . . Combat Hostiles . | . . . Follow-up Attacks . | . . . Damage Inflicted 3123 | 73 79 2971 Guns 1702 | 31 79 1592 Cannons . | . . . Explosions 1421 | 42 . 1379 Melee . | . . . Ramming . | . . . Kinetic 1325 | 6 24 1295 Thermal 339 | 42 . 297 Explosive 1379 | . . 1379 Electromagnetic 80 | 25 55 . Impact . | . . . Slashing . | . . . Piercing . | . . . Highest Corruption . | . . . Average Corruption . | . . . Corruption Purged . | . . . Corruption Blocked . | . . . Overload Shots . | . . . Overflow Damage 71 | . . 71 Projectiles . | . . . Explosions 71 | . . 71 Melee . | . . . Knockbacks . | . . . Impact . | . . . Kinetic . | . . . Secondary . | . . . Self-Inflicted Damage 93 | . . 93 Shots 3 | . . 3 Rammed . | . . . Targets Rammed . | . . . Kicked . | . . . Crushed . | . . . Highest Temperature 92 | 20 20 92 Average Temperature 22 | 13 15 23 Received Heat Transfer 783 | 6 . 777 Siege Activations . | . . . Martial Activations . | . . . Shielding Activations . | . . . Robots Disrupted . | . . . Combat Hostiles . | . . . Robots Corrupted . | . . . Combat Hostiles . | . . . Parts Fried . | . . . Impact Corruptions . | . . . Robots Melted . | . . . Combat Hostiles . | . . . Parts Melted 2 | . . 2 Heat Transferred 843 | . . 843 Parts Sabotaged . | . . . Parts Stolen . | . . . Parts Stripped . | . . . Power Chain Reactions 1 | 1 . . Alert | -11 -10 -9 ------- Run | Yrd Mat Mat Maximum Alert Level . | . . . Low Security (%) 100 | 100 100 100 Level 1 . | . . . Level 2 . | . . . Level 3 . | . . . Level 4 . | . . . Level 5 . | . . . High Security . | . . . Max Security . | . . . Peak Influence 199 | 20 40 199 Initial . | . . . Average 41 | 2 5 47 Influence Increases 871 | 25 67 779 Destroy 0b10 Robot/C 500 | 20 40 440 Destroy 0b10 Robot/NC 165 | 5 10 150 Destroy Leader 116 | . 10 106 Successful Hack 7 | . 7 . Disable Machine 30 | . . 30 Destroy Structure 53 | . . 53 Influence Decreases 743 | 25 67 651 Time Decay 674 | 25 57 592 Lost Part 69 | . 10 59 Squads Dispatched 4 | . . 4 Investigation 2 | . . 2 Extermination . | . . . Reinforcement 2 | . . 2 Assault . | . . . Garrison . | . . . Intercept . | . . . Searches Triggered . | . . . Construction Impeded . | . . . Haulers Reinforced . | . . . Active Scanning Responses . | . . . Cargo Convoy Interrupts . | . . . Stealth | -11 -10 -9 --------- Run | Yrd Mat Mat Distress Signals 5 | . . 5 Communications Jammed . | . . . Distress Signals . | . . . Times Spotted 42 | 1 3 38 Peak Tracking Total 4 | 1 3 4 Tactical Retreats . | . . . Traps | -11 -10 -9 ------- Run | Yrd Mat Mat Traps Triggered . | . . . Indirectly . | . . . Trap Hack Attempts . | . . . Triggered . | . . . Disarmed . | . . . Reprogrammed . | . . . Reused . | . . . Traps Extracted . | . . . Installed . | . . . Triggered . | . . . Machines | -11 -10 -9 ---------- Run | Yrd Mat Mat Machines Disabled 2 | . . 2 Max in Single Turn 1 | . . 1 Machines Repaired . | . . . Machines Dismantled . | . . . Machines Sabotaged . | . . . Overloaded Fab Kills . | . . . Hacking | -11 -10 -9 --------- Run | Yrd Mat Mat Machines Accessed 5 | . 2 3 Terminals 4 | . 2 2 Fabricators . | . . . Repair Stations . | . . . Recycling Units 1 | . . 1 Scanalyzers . | . . . Garrison Access . | . . . Total Hacks 21 | . 7 14 Successful 14 | . 4 10 Failed 7 | . 3 4 Catastrophic 1 | . . 1 Database Lockouts . | . . . Manual . | . . . Terminals 16 | . 7 9 Fabricators . | . . . Repair Stations . | . . . Recycling Units 5 | . . 5 Scanalyzers . | . . . Garrison Access . | . . . Terminal Hacks 10 | . 4 6 Record 6 | . 2 4 Alert Level 2 | . 1 1 Recall Reinforcements 1 | . . 1 Zone Layout 1 | . 1 . Fabricator Hacks . | . . . Repair Station Hacks . | . . . Recycling Unit Hacks 4 | . . 4 Recycle Component 1 | . . 1 Report Inventory 1 | . . 1 Retrieve Matter 1 | . . 1 Retrieve Components 1 | . . 1 Scanalyzer . | . . . Garrison Access Hacks . | . . . Unauthorized Hacks . | . . . Terminals . | . . . Fabricators . | . . . Repair Stations . | . . . Recycling Units . | . . . Scanalyzers . | . . . Garrison Access . | . . . Data Cores Recovered . | . . . Used . | . . . Hacking Detections 5 | . 2 3 Full Trace Events 5 | . 2 3 Feedback Events . | . . . Feedback Blocked . | . . . Robot Schematics Acquired . | . . . Robots Built . | . . . Authchips . | . . . Time . | . . . Total Robot Build Rating . | . . . Part Schematics Acquired . | . . . Parts Built . | . . . Authchips . | . . . Time . | . . . Total Part Build Rating . | . . . Parts Repaired . | . . . Time . | . . . Parts Recycled 1 | . . 1 Recycled Matter . | . . . Retrieved Matter 68 | . . 68 Retrieved Components 10 | . . 10 Parts Scanalyzed . | . . . Part Schematics Acquired . | . . . Parts Damaged . | . . . Bothacking | -11 -10 -9 ------------ Run | Yrd Mat Mat Used RIF Installer . | . . . Robots Hacked . | . . . Non-combat . | . . . Combat . | . . . Robot Hacks Applied . | . . . Relay Couplers Released . | . . . Fabnet Peak Effective % . | . . . Robots Rewired . | . . . Allies Hacked . | . . . Hacks Repelled . | . . . Allies | -11 -10 -9 -------- Run | Yrd Mat Mat Total Allies . | . . . Largest Group . | . . . Highest-Rated Group . | . . . Highest-Rated Ally . | . . . Total Orders . | . . . Ally Attacks . | . . . Total Damage . | . . . Kills . | . . . Allies Corrupted . | . . . Allies Melted . | . . . Intel | -11 -10 -9 ------- Run | Yrd Mat Mat Active Infowar (turns) . | . . . Robot Analysis Total . | . . . Derelict Logs Recovered . | . . . Drone Launches . | . . . Drone Recoveries . | . . . Exploration | -11 -10 -9 ------------- Run | Yrd Mat Mat Turns Passed 3086 | 121 320 2645 Spaces Moved 544 | 97 135 312 Core 50 | 25 . 25 Treads 85 | . . 85 Legs 340 | 72 135 133 Wheels . | . . . Hover 48 | . . 48 Flight 21 | . . 21 Fastest Speed 50 | 50 120 120 Average Speed 474 | 101 209 704 Slowest Speed 2040 | 120 400 2040 Overloaded Moves . | . . . Propulsion Burnouts . | . . . Robots Hopped . | . . . Potential Cave-ins . | . . . Cave-ins Triggered . | . . . Exploration Rate (%) 14 | 6 20 18 Regions Visited 2 Branch Regions . Pre-discovered Areas . | . . . Known Exits Taken . | . . . Unknown Exits Taken 2 | 1 1 . Scrap Searched . | . . . Spaces Dug . | . . . Terrain Destroyed 64 | . . 64 Melee . | . . . Projectile . | . . . AOE 64 | . . 64 Terrain Rammed . | . . . Walls Destroyed . | . . . Machines Disabled . | . . . Actions | -11 -10 -9 --------- Run | Yrd Mat Mat Total 825 | 113 160 552 Wait . | . . . Move 542 | 96 134 312 Hop . | . . . Pick Up 47 | 8 10 29 Fast Attach . | . . . Attach 24 | 6 1 17 Detach 1 | . . 1 Swap 21 | . 2 19 Drop 17 | . 2 15 Fire 173 | 3 11 159 Melee . | . . . Ram . | . . . Kick . | . . . Crush . | . . . Escape Stasis . | . . . Rewire . | . . . Trap . | . . . Miscellaneous . | . . . Route ------- -11/Scrapyard -10/Materials -9/Materials (discovered 2 exits: [*Mat] / [*Min]) History --------- Turn | Location | Event 2 | -11/Scrapyard | Met Revision 17 76 | -11/Scrapyard | Discovered new exit (range 8) 122 | -11/Scrapyard | Entered Materials 310 | -10/Materials | Build established: Mutant 406 | -10/Materials | Discovered new exit (range 9) 442 | -10/Materials | Entered another Materials area 442 | -9/Materials | Evolved 2 slots: Power x1, Utility x1 706 | -9/Materials | Discovered new exit (range 12) 1455 | -9/Materials | Core integrity fell below 50% 1969 | -9/Materials | Build established: Scavenger-Mutant 2110 | -9/Materials | Core integrity fell below 20% 2168 | -9/Materials | Lost 3 parts (1n1u1w) 2387 | -9/Materials | Build established: Mutant 2751 | -9/Materials | Discovered new exit (range 15) 3087 | -9/Materials | Destroyed by Y-45 Defender with Beam Rifle Last Messages --------------- Heat Sink melted. G-34 Mercenary destroyed. Acquired 3 matter. K-01 Serf collects debris. Acquired 3 matter. Acquired Aluminum Leg. Acquired 3 matter. Acquired Ion Engine. Dropped Lgt. Treads. Acquired Lgt. Treads. R-06 Scavenger collects Lgt. Ion Engine. R-06 Scavenger collects Heat Sink. Dropped Imp. Terrain Scanner. Dropped Seismic Detector. Dropped Sml. Storage Unit. Dropped Lgt. Treads. R-06 Scavenger collects Sml. Laser. Dropped Cld. Ion Engine. Dropped Med. Matter Pod. Dropped Lgt. Treads. Map ----- +----------------------------------------------------+ | #??????????????????????????????????? | | #??????????????????????????????????? | | #??????????????????????????????????? | | #??????????????????????????????????? | | #??????????????????????????????????? | | #??????????????????????????????????? | | #??????????????????????????????????? | | #??????????????????????????????????? | | #??????????????????????????????????? | | #??????????????????????????????????? | | #??????????????????????????????????? | | #??????????????????????????????????? | | + ???????????????????????????? | | "" # ""??????????????????????????????? | | Y" #????????????????? ?#??????????????? | | % #???????????????? #??????????????? | | #??????????????"" ???????????????? | | #??????????#""""" ????????????????? | | #??????????#""""" ????????????????? | | #??????????#""""" ?????????????????? | | % #???????????? ???????#??????????? | | #???????????###+###????o#??????????? | | #???????????# ##### ##?????????? | | % #???????????# !* #?????????? | | #???????????# !!! < #?????????? | | ############# =@ #?????????? | | k% k % ###/####?????????? | | ############### ! ##? ????????????? | | #???# # #?? ""???????????? | | ####???# %#[ #? """??????????? | | ???????# %+! ## """??????????? | | ???????# # + ?????????? | | ???????# """ # ## ??????????? | | ???????# "T" """ # ## "T??????????? | | ???????# """ """ ## ### "???????????? | | ???????# ## #?# ???????????? | | ???????############ #?##Y##????????????? | | ??????????????????# #??##??????????????? | | ??????????????????# #??????????????????? | | ??????????????????# #??????????????????? | | ??????????????????# #??????????????????? | | ??????????????????# #??????????????????? | | ??????????????????? #??????????????????? | | ???????????????????+???????????????????? | | ???????????????????????????????????????? | | ???????????????????????????????????????? | | ???????????????????????????????????????? | | ???????????????????????????????????????? | | ???????????????????????????????????????? | | ???????????????????????????????????????? | +----------------------------------------------------+ Best States ------------- Heat Dissipation 42 Energy Generation 23 Energy Capacity 430 Matter Stores 500 Matter Capacity 500 Sight Range 16 Terrain Scan Density 10 Additional Mass Support 6 Armor Coverage 150 Evasion (%) 55 Recoil Reduction 2 Offensive Hacking 10 Item Schematics ----------------- None Robot Schematics ------------------ None Fabricated ------------ Nothing Repaired ---------- Nothing Alien Tech Used ----------------- None Achievements -------------- Hey, That's Mine! Loot Pinata Challenges ------------ None Game ------ Seed MiniTerrabombCalibrator Manual? 0 Play Time 00:17:53 Cumulative 1.1 hours Start 2025.08.26 @ 09:30:54 End 2025.08.26 @ 09:47:20 Sessions 1 Manual Loads 0 Difficulty Rogue Special Mode None Game No. 3 Rogue 3 Adventurer 0 Explorer 0 Win Type - Total 0 Types 0/0/0/0/0/0/0/0/0/0 Lore% 0 Gallery% 3 Achievement% 3 Wizard Run 0 Options --------- Layout 1 ASCII 0 Keyboard 0 Movement Mouse Keybinds 0 Fullscreen 2 Font 24/Terminus Map View 50x35 Zoom Use 0% Tactical HUD 0 Map Filters NONE Filters NONE Steam 1 RUN: de267a11-3e10-410c-a71d-d8cf4b584433